bitfinex/quotes_SOLUSD_20240816
["timestamp","ask_amount","ask_price","bid_price","bid_amount"]
[1723828025247,7.49172542,137.91,137.84,6.5405]
[1723828025476,20.0,137.99,137.84,6.5405]
[1723828025870,7.49023669,137.92,137.85,1.45005349]
[1723828026179,20.0,137.99,137.84,6.5405]
[1723828026180,22.53754573,137.99,137.86,1.44986428]
[1723828026479,7.48951988,137.95,137.85,45.0]
[1723828026664,22.53754573,137.99,137.85,45.0]
[1723828026863,7.48932307,137.98,137.85,45.0]
[1723828027763,7.48932307,137.98,137.84,6.5405]
[1723828027983,7.48932307,137.98,137.84,7.9882789]
[1723828028154,7.48932307,137.98,137.84,6.5405]
[1723828028774,20.0,137.97,137.84,6.5405]
[1723828029057,20.0,137.97,137.85,45.0]
[1723828030379,20.0,137.97,137.84,6.5405]
[1723828030871,20.0,137.97,137.85,1.4139148]
[1723828031379,20.0,137.97,137.84,6.5405]
[1723828031587,20.0,137.97,137.86,1.41329942]
[1723828031773,20.0,137.97,137.85,45.0]
[1723828032777,20.0,137.97,137.86,1.44725234]
[1723828032961,20.0,137.97,137.85,45.0]
[1723828035870,20.0,137.97,137.84,6.5405]
[1723828036070,45.0,137.96,137.84,6.5405]
[1723828036293,20.0,137.95,137.84,6.5405]
[1723828036463,45.0,137.94,137.84,6.5405]
[1723828037064,7.48612008,137.93,137.82,16.1959]
[1723828037291,65.0,137.92,137.82,16.1959]
[1723828037989,20.0,137.92,137.82,16.1959]
[1723828038193,7.48612008,137.93,137.82,16.1959]
[1723828038427,7.48612008,137.93,137.82,16.81957484]
[1723828038621,7.48612008,137.93,137.83,45.0]
[1723828039090,7.48612008,137.93,137.84,7.2547]
[1723828039290,20.0,137.99,137.86,6.2997]
[1723828039495,20.0,137.99,137.87,45.0]
[1723828039821,7.48803349,137.95,137.86,6.2997]
[1723828039993,20.0,137.99,137.86,6.2997]
[1723828040191,7.48817988,137.98,137.86,6.2997]
[1723828040811,45.0,137.97,137.86,6.2997]
[1723828041197,45.0,137.97,137.82,16.1959]
[1723828041508,45.0,137.97,137.81,6.0883]
[1723828041812,20.0,137.96,137.78,15.3197]
[1723828042053,65.0,137.95,137.78,15.3197]
[1723828042215,65.0,137.95,137.77,6.3338]
[1723828042216,20.0,137.94,137.77,6.3338]
[1723828042428,65.0,137.93,137.74,15.3197]
[1723828042732,20.0,137.92,137.74,15.3197]
[1723828042893,45.0,137.91,137.74,15.3197]
[1723828043223,20.0,137.9,137.74,15.3197]
[1723828043426,45.0,137.89,137.74,15.3197]
[1723828043592,20.0,137.88,137.74,16.76952897]
[1723828043799,20.0,137.88,137.74,24.02952897]
[1723828044306,45.0,137.89,137.75,7.2594]
[1723828044526,45.0,137.89,137.76,1.44961848]
[1723828044819,45.0,137.89,137.76,46.44961848]
[1723828045018,7.48817988,137.98,137.76,64.59651848]
[1723828045192,3.01310204,137.89,137.77,7.38349]
[1723828045396,7.48817988,137.98,137.78,45.0]
[1723828045619,7.48817988,137.98,137.78,52.2578]
[1723828045836,7.48817988,137.98,137.81,15.3076]
[1723828046128,10.53709041,137.98,137.81,15.3076]
[1723828046430,10.53709041,137.98,137.82,45.0]
[1723828047310,10.53709041,137.98,137.83,1.45038407]
[1723828047631,10.53709041,137.98,137.82,45.0]
[1723828048000,10.53709041,137.98,137.82,52.2556]
[1723828048235,10.53709041,137.98,137.82,45.0]
[1723828049329,65.0,137.97,137.81,15.3076]
[1723828050498,7.4946204,137.96,137.81,15.3076]
[1723828050703,65.0,137.95,137.81,15.3076]
[1723828051134,45.0,137.95,137.81,15.3076]
[1723828051317,7.4946204,137.96,137.81,40.7042]
[1723828051631,7.4946204,137.96,137.81,33.448]
[1723828052226,7.4946204,137.96,137.82,45.0]
[1723828052629,45.0,137.95,137.82,45.0]
[1723828053314,20.0,137.94,137.82,45.0]
[1723828054214,45.0,137.93,137.81,15.3076]
[1723828054510,20.0,137.92,137.81,15.3076]
[1723828054723,45.0,137.91,137.81,15.3076]
[1723828054952,20.0,137.9,137.78,7.2579]
[1723828055122,20.0,137.9,137.74,22.2985]
[1723828055445,20.0,137.9,137.75,1.45109119]
[1723828055446,45.0,137.89,137.75,1.45109119]
[1723828055645,10.01573258,137.96,137.76,20.0]
[1723828055947,20.0,137.95,137.76,20.0]
[1723828056126,20.0,137.95,137.79,7.2574]
[1723828056320,20.0,137.95,137.78,25.4022]
[1723828056520,20.0,137.95,137.79,45.0]
[1723828056720,45.0,137.94,137.79,45.0]
[1723828056952,20.0,137.93,137.79,45.0]
[1723828057450,45.0,137.92,137.79,45.0]
[1723828057644,20.0,137.91,137.75,18.1479]
[1723828057866,45.0,137.9,137.75,18.1479]
[1723828058146,20.0,137.89,137.74,22.2985]
[1723828058523,45.0,137.88,137.74,22.2985]
[1723828058714,20.0,137.87,137.74,22.2985]
[1723828058911,45.0,137.86,137.74,22.2985]
[1723828059421,20.0,137.87,137.74,40.4483]
[1723828059731,20.0,137.95,137.77,7.2584]
[1723828059922,2.4918817,137.88,137.78,45.0]
[1723828060247,20.0,137.95,137.77,45.0]
[1723828060548,20.0,137.95,137.77,52.2584]
[1723828060755,7.49824614,137.94,137.78,7.2577]
[1723828060951,20.0,137.93,137.79,45.0]
[1723828061260,20.0,137.93,137.78,7.2579]
[1723828061465,20.0,137.93,137.79,45.12549]
[1723828062551,45.0,137.92,137.76,25.4058]
[1723828062745,20.0,137.91,137.76,25.4058]
[1723828062942,45.0,137.9,137.77,1.4509957]
[1723828063246,45.0,137.9,137.76,18.1471]
[1723828063638,45.0,137.9,137.77,8.70918135]
[1723828063937,45.0,137.9,137.77,53.70918135]
[1723828064330,45.0,137.9,137.78,22.2601]
[1723828064583,20.0,137.91,137.79,46.57628086]
[1723828064746,20.0,137.93,137.79,46.57628086]
[1723828065064,45.0,137.92,137.79,46.57628086]
[1723828065244,20.0,137.91,137.79,46.57628086]
[1723828065851,20.0,137.91,137.79,45.0]
[1723828066036,45.0,137.9,137.79,45.0]
[1723828066867,20.0,137.91,137.79,45.0]
[1723828067247,22.54259601,137.93,137.79,45.0]
[1723828067450,45.0,137.92,137.79,45.0]
[1723828067639,20.0,137.91,137.79,45.0]
[1723828071177,7.49462388,137.9,137.79,45.0]
[1723828071549,7.49462388,137.9,137.78,22.2601]
[1723828071761,45.0,137.89,137.78,22.2601]
[1723828073269,45.0,137.89,137.79,45.0]
[1723828075454,7.49462388,137.9,137.79,45.0]
[1723828078605,7.49462388,137.9,137.78,22.2601]
[1723828078785,65.0,137.89,137.78,22.2601]
[1723828079507,30.0,137.85,137.78,22.2601]
[1723828079805,30.0,137.85,137.75,22.4974]
[1723828079974,65.0,137.84,137.75,22.4974]
[1723828080514,30.0,137.83,137.75,22.4974]
[1723828080666,45.0,137.82,137.75,22.4974]
[1723828081391,33.08022552,137.81,137.75,22.4974]
[1723828082689,33.08022552,137.81,137.76,1.45115109]
[1723828082890,25.59,137.81,137.77,1.45104575]
[1723828083096,2.52019221,137.85,137.76,45.0]
[1723828083282,7.47013782,137.84,137.77,1.45097972]
[1723828083596,7.47013782,137.84,137.76,45.0]
[1723828084877,7.47013782,137.84,137.75,22.4974]
[1723828086187,9.97352475,137.84,137.75,22.4974]
[1723828086585,9.97352475,137.84,137.76,45.0]
[1723828088309,29.07873,137.94,137.77,26.85439121]
[1723828088511,2.5570274,137.85,137.76,45.0]
[1723828088675,7.46967749,137.86,137.76,45.0]
[1723828088876,43.32526914,137.93,137.76,45.0]
[1723828089078,31.62925415,137.94,137.76,45.0]
[1723828089079,7.46984811,137.85,137.77,1.45113016]
[1723828089301,43.32526914,137.93,137.76,52.2589]
[1723828089501,7.4701068,137.86,137.76,52.2589]
[1723828089680,7.4701068,137.86,137.77,8.70941216]
[1723828089888,31.62925415,137.94,137.79,6.2707]
[1723828090083,7.46959751,137.87,137.79,6.2707]
[1723828090400,31.62925415,137.94,137.79,6.2707]
[1723828090578,7.47013917,137.86,137.79,6.2707]
[1723828090903,31.62925415,137.94,137.8,45.0]
[1723828091208,7.46968042,137.87,137.81,15.6061]
[1723828091378,20.0,137.93,137.81,15.6061]
[1723828091576,7.46985651,137.87,137.81,15.6061]
[1723828091773,29.07873,137.94,137.82,45.0]
[1723828091997,7.46979665,137.9,137.81,15.6061]
[1723828092291,29.07873,137.94,137.81,15.6061]
[1723828092493,7.47210961,137.89,137.81,15.6061]
[1723828092875,43.3198575,137.98,137.81,15.6061]
[1723828093077,7.47203842,137.88,137.81,15.6061]
[1723828093295,20.0,137.97,137.81,15.6061]
[1723828093500,45.0,137.96,137.81,15.6061]
[1723828093699,7.47226329,137.89,137.81,15.6061]
[1723828093883,63.31933698,137.95,137.81,15.6061]
[1723828094208,7.47301811,137.88,137.81,15.6061]
[1723828094505,45.0,137.94,137.81,15.6061]
[1723828094713,7.47317086,137.89,137.81,15.6061]
[1723828095014,45.0,137.88,137.81,15.6061]
[1723828095214,52.47421659,137.88,137.81,15.6061]
[1723828097208,55.53863031,137.88,137.81,15.6061]
[1723828097391,10.53863031,137.88,137.81,15.6061]
[1723828098810,45.0,137.87,137.81,15.6061]
[1723828099108,10.53863031,137.88,137.81,15.6061]
[1723828102611,45.0,137.87,137.81,15.6061]
[1723828103302,10.53863031,137.88,137.81,15.6061]
[1723828104280,45.0,137.87,137.81,15.6061]
[1723828104897,7.47421659,137.88,137.81,15.6061]
[1723828105100,45.4054,137.93,137.81,15.6061]
[1723828105404,7.47937316,137.87,137.81,15.6061]
[1723828105783,45.0,137.92,137.81,15.6061]
[1723828105986,7.47914424,137.86,137.81,15.6061]
[1723828106186,30.0,137.82,137.81,15.6061]
[1723828106394,30.0,137.82,137.81,11.12377094]
[1723828106697,52.48055978,137.85,137.81,11.12377094]
[1723828107495,7.48055978,137.85,137.81,11.12377094]
[1723828108921,2.48863023,137.86,137.81,11.12377094]
[1723828109217,7.47899031,137.87,137.81,11.12377094]
[1723828113824,7.47899031,137.87,137.82,1.45086913]
[1723828114008,27.97504475,137.93,137.81,11.12377094]
[1723828114204,65.0,137.92,137.81,11.12377094]
[1723828114420,7.49139201,137.89,137.81,11.12377094]
[1723828114723,65.0,137.92,137.81,11.12377094]
[1723828115416,7.49067025,137.91,137.81,11.12377094]
[1723828115796,7.49067025,137.91,137.83,6.291]
[1723828117632,7.49067025,137.91,137.83,7.74162866]
[1723828117923,7.49067025,137.91,137.83,6.291]
[1723828118101,7.49067025,137.91,137.84,45.0]
[1723828118494,7.49067025,137.91,137.85,15.5031]
[1723828118733,7.49067025,137.91,137.78,41.83]
[1723828118734,3.05651688,137.92,137.86,52.78936097]
[1723828118915,3.05651688,137.92,137.88,6.3395]
[1723828119232,7.48972064,137.96,137.89,45.0]
[1723828119709,7.48939006,137.99,137.91,6.3395]
[1723828119905,7.48939006,137.99,137.92,1.44974169]
[1723828120210,7.48939006,137.99,137.93,1.4497417]
[1723828120522,7.48939006,137.99,137.91,6.3395]
[1723828122593,45.0,137.98,137.91,6.3395]
[1723828124127,7.48939006,137.99,137.91,6.3395]
[1723828124298,45.0,137.98,137.91,6.3395]
[1723828126042,7.48939006,137.99,137.91,6.3395]
[1723828126417,7.48939006,137.99,137.92,1.4497663]
[1723828126731,7.48939006,137.99,137.92,46.4497663]
[1723828126905,7.48939006,137.99,137.92,45.0]
[1723828127837,7.48939006,137.99,137.91,6.3395]
[1723828131927,7.48939006,137.99,137.92,45.0]
[1723828132814,0.8147396,138.02,137.93,1.44917716]
[1723828133027,0.8147396,138.02,137.92,46.44946553]
[1723828133248,7.48816707,138.01,137.92,46.44946553]
[1723828134615,7.48816707,138.01,137.94,6.0033]
[1723828134943,3.37738308,138.02,137.95,45.0]
[1723828136555,0.8147396,138.02,137.99,7.2468]
[1723828136853,0.8147396,138.02,138.0,46.44857802]
[1723828137056,0.8147396,138.02,138.0,45.0]
[1723828137226,0.8147396,138.02,138.01,1.4487439]
[1723828137427,0.8147396,138.02,138.01,16.1877]
[1723828140654,3.36723894,138.02,138.01,16.1877]
[1723828142939,0.8147396,138.02,138.01,16.1877]
[1723828144142,0.8147396,138.02,138.01,61.1877]
[1723828144339,0.8147396,138.02,137.97,22.55]
[1723828145142,0.8147396,138.02,137.98,1.44889657]
[1723828145452,2.96292167,138.05,137.99,29.5279]
[1723828145658,7.5377,138.13,137.99,29.5279]
[1723828145843,7.489364,138.09,138.0,45.0]
[1723828146050,7.489364,138.09,138.01,1.44844037]
[1723828146456,7.489364,138.09,137.99,22.2814]
[1723828147270,65.0,138.08,137.99,22.2814]
[1723828148172,7.489364,138.09,137.99,22.2814]
[1723828148351,7.489364,138.09,138.0,45.0]
[1723828148542,7.489364,138.09,137.99,22.2814]
[1723828149654,65.0,138.08,137.99,22.2814]
[1723828151548,65.0,138.08,137.96,6.0262]
[1723828153777,65.0,138.08,137.95,16.4757]
[1723828154087,0.8145,138.05,137.91,16.4648]
[1723828154285,30.0,138.0,137.91,16.4648]
[1723828154580,20.0,137.99,137.91,16.4648]
[1723828154782,45.0,137.98,137.91,16.4648]
[1723828155346,45.0,137.98,137.9,6.4215]
[1723828155588,8.3522,137.97,137.85,6.5972]
[1723828155767,65.0,137.96,137.85,6.5972]
[1723828156288,72.58623712,137.96,137.85,6.5972]
[1723828156488,72.58623712,137.96,137.84,16.2492]
[1723828157691,92.58623712,137.96,137.81,6.6614]
[1723828158182,95.0672815,137.96,137.81,6.6614]
[1723828158685,8.3522,137.95,137.79,15.2193]
[1723828158859,65.0,137.94,137.79,15.2193]
[1723828159580,8.3522,137.93,137.77,6.2791]
[1723828159782,65.0,137.92,137.77,6.2791]
[1723828160868,7.5377,137.91,137.68,21.603]
[1723828161066,20.0,137.88,137.68,21.603]
[1723828161409,65.0,137.87,137.68,21.603]
[1723828161556,65.0,137.87,137.68,28.8661]
[1723828162170,65.0,137.87,137.69,7.2626]
[1723828162371,65.0,137.87,137.68,40.79926725]
[1723828162569,45.0,137.87,137.7,7.262]
[1723828162875,45.0,137.87,137.71,7.2614]
[1723828163555,45.0,137.87,137.72,52.2609]
[1723828163955,20.0,137.86,137.72,52.2609]
[1723828164189,45.0,137.85,137.73,29.902]
[1723828164378,45.0,137.85,137.74,45.0]
[1723828164694,2.52081186,137.88,137.74,45.0]
[1723828164990,8.3522,137.9,137.75,7.2593]
[1723828165284,8.3522,137.9,137.76,45.0]
[1723828165696,0.8145,137.94,137.76,63.1469]
[1723828165909,0.8145,137.94,137.79,6.3582]
[1723828166086,0.8145,137.94,137.8,45.0]
[1723828166472,7.58019151,137.93,137.8,45.0]
[1723828166769,7.58019151,137.93,137.81,16.4212]
[1723828166971,7.58019151,137.93,137.82,45.0]
[1723828167690,7.58019151,137.93,137.83,7.2552]
[1723828167996,7.58019151,137.93,137.84,45.0]
[1723828169581,7.58019151,137.93,137.83,45.0]
[1723828170301,65.0,137.92,137.81,16.4212]
[1723828170589,0.8145,137.91,137.79,6.3582]
[1723828176688,7.58829877,137.9,137.79,6.3582]
[1723828176912,65.0,137.89,137.79,6.3582]
[1723828177298,65.0,137.89,137.77,15.3557]
[1723828177993,83.1496,137.89,137.77,15.3557]
[1723828178778,83.1496,137.89,137.78,45.0]
[1723828179098,45.0,137.89,137.78,46.45040349]
[1723828179292,45.0,137.89,137.78,45.0]
[1723828181726,48.08430528,137.89,137.78,45.0]
[1723828183427,20.0,137.88,137.77,15.3557]
[1723828183727,45.0,137.87,137.77,15.3557]
[1723828184603,45.0,137.87,137.78,45.0]
[1723828184901,20.0,137.88,137.78,52.2579]
[1723828185112,2.59788805,137.89,137.78,45.0]
[1723828185314,20.0,137.89,137.78,45.0]
[1723828185517,20.0,137.89,137.76,6.1138]
[1723828186416,45.0,137.88,137.77,52.258]
[1723828186625,20.0,137.89,137.78,8.70881406]
[1723828186931,20.0,137.89,137.79,52.257]
[1723828187102,7.58708777,137.88,137.79,52.257]
[1723828187613,7.58708777,137.88,137.79,45.0]
[1723828189237,65.0,137.87,137.76,6.1138]
[1723828189904,65.0,137.87,137.76,13.3726]
[1723828190437,10.12449366,137.88,137.77,1.57651292]
[1723828190632,0.8145,137.91,137.8,7.2567]
[1723828190830,8.40161585,137.91,137.81,61.92545987]
[1723828191036,8.40161585,137.91,137.81,60.4749]
[1723828191412,7.58711585,137.91,137.81,60.4749]
[1723828192134,7.58711585,137.91,137.81,67.7311]
[1723828192312,7.58711585,137.91,137.81,60.4749]
[1723828193430,10.13069683,137.91,137.81,60.4749]
[1723828196339,10.13069683,137.91,137.81,67.7308]
[1723828196530,7.58711585,137.91,137.83,7.2551]
[1723828196750,0.8145,137.95,137.84,46.45019233]
[1723828196929,8.3991378,137.95,137.84,45.0]
[1723828197830,10.95779583,137.95,137.84,45.0]
[1723828198027,10.95779583,137.95,137.85,1.45017497]
[1723828198618,10.95779583,137.95,137.84,45.0]
[1723828199029,10.95779583,137.95,137.83,45.0]
[1723828199240,65.0,137.94,137.83,45.0]
[1723828199451,65.0,137.94,137.82,6.6105]
[1723828200816,65.0,137.94,137.83,45.0]
[1723828201647,65.0,137.94,137.81,15.4749]
[1723828203148,65.0,137.94,137.81,22.7309]
[1723828203449,65.0,137.94,137.82,45.0]
[1723828204538,65.0,137.94,137.81,15.4749]
[1723828205256,7.5377,137.93,137.79,6.0504]
[1723828205435,65.0,137.92,137.79,6.0504]
[1723828206057,65.0,137.92,137.8,7.2565]
[1723828206570,65.0,137.92,137.81,45.0]
[1723828206744,65.0,137.92,137.8,45.0]
[1723828207041,7.5377,137.93,137.83,7.2549]
[1723828207244,7.58664009,137.92,137.84,46.45038477]
[1723828207862,7.58664009,137.92,137.84,1.45038477]
[1723828208538,7.58664009,137.92,137.84,19.58668477]
[1723828208744,7.5377,137.93,137.85,45.0]
[1723828208966,15.12351722,137.93,137.85,45.0]
[1723828209148,15.12351722,137.93,137.84,45.0]
[1723828209347,15.12351722,137.93,137.81,18.1398]
[1723828209348,15.12351722,137.93,137.83,52.2552]
[1723828209773,15.12351722,137.93,137.83,53.70541502]
[1723828210446,15.12351722,137.93,137.83,52.2552]
[1723828211278,7.58581722,137.93,137.85,16.6372]
[1723828211481,0.8145,137.95,137.86,14.93545375]
[1723828211661,0.8145,137.95,137.87,45.0]
[1723828211864,15.12151381,137.97,137.88,1.44993469]
[1723828212093,15.12151381,137.97,137.87,45.0]
[1723828212397,15.12151381,137.97,137.85,16.6372]
[1723828212697,15.12151381,137.97,137.83,6.1358]
[1723828212864,15.12151381,137.97,137.81,274.3835]
[1723828213059,17.69937965,137.97,137.81,274.3835]
[1723828213283,20.0,137.96,137.81,274.3835]
[1723828213590,20.0,137.96,137.81,281.6398]
[1723828213793,45.0,137.95,137.81,281.6398]
[1723828214088,20.0,137.94,137.82,45.0]
[1723828214393,45.0,137.93,137.82,45.0]
[1723828214687,20.0,137.94,137.82,45.0]
[1723828214863,17.69937965,137.97,137.83,0.25098]
[1723828215071,20.0,137.96,137.83,18.38868]
[1723828215256,20.0,137.96,137.84,45.0]
[1723828218370,45.0,137.95,137.84,45.0]
[1723828218570,45.0,137.96,137.84,45.0]
[1723828219192,45.0,137.96,137.84,63.136]
[1723828219367,17.69937965,137.97,137.85,1.57561074]
[1723828219565,17.69937965,137.97,137.86,1.44990883]
[1723828219898,17.69937965,137.97,137.86,45.0]
[1723828220269,17.69937965,137.97,137.82,7.2555]
[1723828221090,20.0,137.96,137.82,7.2555]
[1723828221264,45.0,137.95,137.82,7.2555]
[1723828221471,20.0,137.94,137.82,7.2555]
[1723828221669,20.0,137.94,137.83,45.0]
[1723828221999,20.0,137.94,137.85,7.2538]
[1723828222000,7.58480076,137.94,137.85,7.2538]
[1723828222173,7.5377,137.97,137.86,45.0]
[1723828222368,7.5377,137.97,137.86,46.00159349]
[1723828222571,7.58440404,137.96,137.85,45.0]
[1723828222786,7.58440404,137.96,137.84,45.12549]
[1723828222981,7.58440404,137.96,137.84,53.83011134]
[1723828223263,20.0,137.95,137.84,53.83011134]
[1723828223491,20.0,137.95,137.84,52.38009]
[1723828223995,20.0,137.95,137.84,45.12549]
[1723828224372,20.0,137.95,137.85,1.29139059]
[1723828224569,20.0,137.95,137.86,1.29129691]
[1723828224975,7.58440404,137.96,137.86,1.29129691]
[1723828225208,7.58440404,137.96,137.88,16.2009]
[1723828225370,7.5377,137.97,137.89,46.44970097]
[1723828225703,7.5377,137.97,137.89,45.0]
[1723828226108,3.04955349,137.98,137.89,45.0]
[1723828226297,3.04955349,137.98,137.9,1.44958181]
[1723828226613,7.58317429,137.99,137.9,1.44958181]
[1723828226767,7.5377,138.06,137.93,6.0595]
[1723828226971,7.58015664,138.04,137.95,15.1731]
[1723828227171,7.58015664,138.04,137.96,45.0]
[1723828230293,20.0,138.03,137.95,15.1731]
[1723828231399,7.58015664,138.04,137.96,45.0]
[1723828231770,3.08307442,138.05,137.96,46.4487173]
[1723828231972,7.580157,138.04,137.96,45.0]
[1723828232215,7.57849026,138.06,137.96,45.0]
[1723828232368,7.5377,138.1,137.96,45.0]
[1723828232572,7.57896815,138.08,137.96,45.0]
[1723828233300,7.57896815,138.08,137.97,24.6582]
[1723828233474,7.57896815,138.08,137.98,52.37239]
[1723828233685,7.57896815,138.08,137.98,45.0]
[1723828233897,7.57896815,138.08,137.98,52.2473]
[1723828234101,7.57896815,138.08,137.98,45.0]
[1723828234309,7.5377,138.1,137.97,6.5388]
[1723828234707,7.57929867,138.07,137.97,6.5388]
[1723828234887,7.5377,138.1,137.97,6.5388]
[1723828235084,15.15799768,138.06,137.97,6.5388]
[1723828235307,7.579299,138.06,137.97,6.5388]
[1723828235527,20.0,138.05,137.97,6.5388]
[1723828237098,10.12635406,138.1,137.98,45.0]
[1723828237293,7.57849667,138.08,137.98,45.0]
[1723828237816,7.57849667,138.08,137.97,6.5388]
[1723828237817,45.0,138.07,137.97,6.5388]
[1723828238227,7.57849667,138.08,137.97,6.5388]
[1723828238396,20.0,138.07,137.97,6.5388]
[1723828239001,20.0,138.07,137.98,45.0]
[1723828240223,7.57849667,138.08,137.99,16.3746]
[1723828240394,7.57849667,138.08,138.0,45.0]
[1723828240594,7.5377,138.13,138.02,6.4758]
[1723828240820,7.57601927,138.11,138.03,45.0]
[1723828240993,7.578496,138.12,138.03,45.0]
[1723828241195,7.578496,138.12,138.03,46.4481474]
[1723828241524,7.578496,138.12,138.03,45.0]
[1723828241904,7.578496,138.12,138.04,15.9572]
[1723828242095,7.578496,138.12,138.05,45.0]
[1723828243108,10.14775064,138.13,138.05,45.0]
[1723828243494,20.29550164,138.13,138.05,45.0]
[1723828244421,20.0,138.12,138.05,45.0]
[1723828245714,20.0,138.12,138.04,15.9572]
[1723828245920,45.0,138.11,138.02,6.4758]
[1723828246120,20.0,138.1,138.02,6.4758]
[1723828246698,20.0,138.12,138.02,6.4758]
[1723828247224,7.5377,138.1,138.02,6.4758]
[1723828247427,65.0,138.09,137.98,23.0208]
[1723828247998,30.0,138.05,137.98,23.0208]
[1723828248195,20.0,138.04,137.98,23.0208]
[1723828251322,45.0,138.03,137.94,23.2344]
[1723828251639,20.0,138.02,137.94,23.2344]
[1723828251931,20.0,138.02,137.91,16.5736]
[1723828252109,45.0,138.01,137.91,16.5736]
[1723828252305,20.0,138.0,137.91,16.5736]
[1723828253304,45.0,137.99,137.91,16.5736]
[1723828253505,20.0,137.98,137.91,16.5736]
[1723828253804,20.0,137.98,137.9,6.6608]
[1723828254931,7.5377,137.97,137.86,22.0452]
[1723828255106,20.0,137.96,137.86,22.0452]
[1723828256622,20.0,137.96,137.87,45.0]
[1723828257919,45.0,137.95,137.86,22.0452]
[1723828258110,20.0,137.94,137.86,22.0452]
[1723828259022,20.0,137.94,137.83,22.4102]
[1723828259223,20.0,137.94,137.84,45.0]
[1723828259546,20.0,137.94,137.83,22.4102]
[1723828260614,20.8145,137.94,137.82,23.152]
[1723828260809,45.0,137.93,137.82,23.152]
[1723828261020,20.8145,137.94,137.82,23.152]
[1723828261250,20.0,137.93,137.82,23.152]
[1723828261430,0.8145,137.94,137.82,23.152]
[1723828261816,7.57727769,137.93,137.83,7.2552]
[1723828262029,7.57727769,137.93,137.84,45.25098]
[1723828262235,7.5377,137.97,137.85,45.0]
[1723828262410,7.5377,137.97,137.85,52.2541]
[1723828262411,7.57533876,137.96,137.85,52.2541]
[1723828262624,2.56342091,137.97,137.87,22.8229]
[1723828262833,7.5377,138.01,137.88,45.0]
[1723828263151,17.67610072,137.97,137.88,45.0]
[1723828263320,10.101121,137.97,137.88,45.0]
[1723828264431,7.57464505,138.0,137.91,22.39]
[1723828264733,10.101121,138.04,137.95,6.4932]
[1723828264939,7.57105614,138.04,137.97,15.3397]
[1723828265122,30.0,138.05,137.98,1.44871167]
[1723828265327,7.56974365,138.08,137.99,1.4486907]
[1723828266453,15.3397,138.1,137.99,1.4486907]
[1723828266627,15.3397,138.1,137.98,45.0]
[1723828266826,22.90888607,138.1,137.98,45.0]
[1723828268027,20.0,138.09,137.98,45.0]
[1723828268847,20.0,138.09,137.97,15.3397]
[1723828269026,45.0,138.08,137.97,15.3397]
[1723828269350,20.0,138.07,137.97,15.3397]
[1723828270719,20.0,138.07,137.98,45.0]
[1723828271147,20.0,138.07,137.97,15.3397]
[1723828271350,45.0,138.06,137.97,15.3397]
[1723828271549,20.0,138.05,137.97,15.3397]
[1723828271823,20.0,138.07,137.97,15.3397]
[1723828272035,20.0,138.07,137.97,16.78854231]
[1723828272247,20.0,138.09,137.97,15.3397]
[1723828273229,20.0,138.09,137.98,1.44902884]
[1723828273545,45.0,138.08,137.97,15.3397]
[1723828273749,20.0,138.07,137.97,15.3397]
[1723828274158,22.90888607,138.1,137.98,1.44874435]
[1723828274349,22.90888607,138.1,137.98,0.12549]
[1723828274656,22.90888607,138.1,138.0,6.4634]
[1723828275860,65.0,138.09,138.0,6.4634]